bitfinex-derivatives/quotes_BTCF0:USTF0_20251130
["timestamp","ask_amount","ask_price","bid_price","bid_amount"]
[1764466645341,0.05832,91044.0,91043.0,0.39938]
[1764466646849,0.05832,91044.0,91043.0,0.40138]
[1764466647352,0.05832,91044.0,91043.0,0.40238]
[1764466650153,0.05832,91044.0,91043.0,0.4133621]
[1764466656558,0.0227,91047.0,91046.0,0.0303618]
[1764466656861,0.0227,91047.0,91046.0,0.4403618]
[1764466657158,0.04495,91047.0,91046.0,0.4403618]
[1764466658459,0.04495,91047.0,91046.0,0.4413618]
[1764466660560,0.05832,91047.0,91046.0,0.4413618]
[1764466674664,0.01337,91050.0,91049.0,0.0109814]
[1764466674858,0.05804,91050.0,91049.0,0.4403614]
[1764466675059,0.04467,91050.0,91049.0,0.4403614]
[1764466675260,0.02228,91050.0,91049.0,0.4403614]
[1764466675562,0.01353479,91053.0,91052.0,0.030361]
[1764466675563,0.03581479,91053.0,91052.0,0.030361]
[1764466675761,0.05820479,91053.0,91052.0,0.380361]
[1764466675957,0.02244479,91053.0,91052.0,0.380361]
[1764466677168,0.04583479,91053.0,91052.0,0.380361]
[1764466680370,0.04583479,91053.0,91052.0,0.381361]
[1764466680671,0.04483479,91053.0,91052.0,0.381361]
[1764466680971,0.04483479,91053.0,91052.0,0.383361]
[1764466681371,0.04483479,91053.0,91052.0,0.382361]
[1764466682670,0.05855479,91053.0,91052.0,0.37138]
[1764466683365,0.05855479,91053.0,91052.0,0.37038]
[1764466683572,0.05855479,91053.0,91052.0,0.37138]
[1764466683971,0.05855479,91053.0,91052.0,0.37038]
[1764466684271,0.05855479,91053.0,91052.0,0.36938]
[1764466686773,0.05955479,91053.0,91052.0,0.36938]
[1764466689077,0.05955479,91053.0,91052.0,0.35]
[1764466689880,0.05955479,91053.0,91052.0,0.35969]
[1764466690576,0.05955479,91053.0,91052.0,0.36938]
[1764466694163,0.05955479,91053.0,91052.0,0.03938]
[1764466694368,0.05955479,91053.0,91052.0,0.02969]
[1764466694777,0.05955479,91053.0,91052.0,0.03938]
[1764466695578,0.05955479,91053.0,91052.0,0.02]
[1764466696077,0.05955479,91053.0,91052.0,0.02969]
[1764466698574,0.05955479,91053.0,91052.0,0.03938]
[1764466702287,0.05955479,91053.0,91052.0,0.02969]
[1764466702581,0.04514,91039.0,91038.0,0.0303627]
[1764466702787,0.04514,91039.0,91038.0,0.4503627]
[1764466704374,0.04514,91039.0,91038.0,0.4543627]
[1764466704579,0.04514,91039.0,91038.0,0.4553627]
[1764466705284,0.04514,91039.0,91038.0,0.4543627]
[1764466706282,0.04514,91039.0,91038.0,0.44338]
[1764466710691,0.04514,91039.0,91038.0,0.4543627]
[1764466719397,0.02237,91041.0,91040.0,0.01938]
[1764466719581,0.02237,91041.0,91040.0,0.38938]
[1764466720488,0.01367,91044.0,91043.0,0.01938]
[1764466720489,0.05887,91044.0,91043.0,0.01938]
[1764466720688,0.05887,91044.0,91043.0,0.42938]
[1764466721694,0.05887,91044.0,91043.0,0.43038]
[1764466722790,0.05887,91044.0,91043.0,0.43138]
[1764466728897,0.02237,91044.0,91043.0,0.43138]
[1764466729103,0.05761,91046.0,91045.0,0.01938]
[1764466729305,0.05761,91046.0,91045.0,0.42938]
[1764466729803,0.05804,91050.0,91049.0,0.01938]
[1764466731004,0.05904,91050.0,91049.0,0.01938]
[1764466731601,0.05904,91050.0,91049.0,0.42938]
[1764466731805,0.001,91050.0,91049.0,0.42938]
[1764466735705,0.04537,91050.0,91049.0,0.42938]
[1764466737705,0.05817,91050.0,91049.0,0.42938]
[1764466743708,0.05817,91050.0,91049.0,0.12938]
[1764466743905,0.0128,91044.0,91034.0,0.00985479]
[1764466744105,0.05717,91035.0,91034.0,0.22016479]
[1764466744405,0.08466406,91035.0,91034.0,0.22016479]
[1764466745112,0.08466406,91035.0,91034.0,0.22316479]
[1764466745297,0.08466406,91035.0,91034.0,0.22416479]
[1764466745493,0.08466406,91035.0,91034.0,0.22116479]
[1764466745697,0.08466406,91035.0,91034.0,0.22416479]
[1764466745894,0.08466406,91035.0,91034.0,0.22316479]
[1764466746106,0.08466406,91035.0,91034.0,0.22416479]
[1764466749308,0.08466406,91035.0,91034.0,0.23385479]
[1764466750111,0.08466406,91035.0,91034.0,0.22416479]
[1764466751410,0.08466406,91035.0,91034.0,0.00416479]
[1764466753114,0.05717,91035.0,91034.0,0.00416479]
[1764466759222,0.05717,91035.0,91034.0,0.01385479]
[1764466759415,0.05717,91035.0,91034.0,0.02354479]
[1764466764419,0.05717,91035.0,91034.0,0.00416479]
[1764466767120,0.25808588,91044.0,91043.0,0.01938]
[1764466767121,0.0562,91044.0,91043.0,0.01938]
[1764466767322,0.0562,91048.0,91047.0,0.01938]
[1764466767525,0.0562,91048.0,91047.0,0.16938]
[1764466767822,0.0562,91048.0,91047.0,0.38938]
[1764466768921,0.0572,91048.0,91047.0,0.38938]
[1764466787428,0.0572,91048.0,91047.0,0.01938]
[1764466787627,0.0572,91048.0,91047.0,0.11938]
[1764466788329,0.0572,91048.0,91047.0,0.01938]
[1764466788535,0.0572,91048.0,91047.0,0.30938]
[1764466794339,0.08549188,91048.0,91047.0,0.30938]
[1764466795431,0.05824,91038.0,91037.0,0.01938]
[1764466795633,0.08655839,91038.0,91037.0,0.01938]
[1764466796042,0.08655894,91038.0,91037.0,0.01938]
[1764466796434,0.08655894,91038.0,91037.0,0.02138]
[1764466797130,0.08655894,91038.0,91037.0,0.02238]
[1764466800343,0.05033894,91038.0,91037.0,0.02238]
[1764466800543,0.08656335,91038.0,91037.0,0.02238]
[1764466801542,0.05824,91038.0,91037.0,0.02238]
[1764466803944,0.05824,91038.0,91037.0,0.45238]
[1764466817762,0.05824,91038.0,91037.0,0.21238]
[1764466818664,0.05824,91038.0,91037.0,0.02238]
[1764466820468,0.05824,91038.0,91037.0,0.01269]
[1764466822961,0.05824,91038.0,91037.0,0.003]
[1764466824167,0.05824,91038.0,91037.0,0.0333628]
[1764466825761,0.05824,91038.0,91037.0,0.0139828]
[1764466825962,0.05824,91038.0,91037.0,0.003]
[1764466825963,0.08662071,91038.0,91037.0,0.003]
[1764466831979,0.08662071,91038.0,91037.0,0.01269]
[1764466834566,0.08662071,91038.0,91037.0,0.003]
[1764466835281,0.05824,91038.0,91037.0,0.003]
[1764466839284,0.086602,91038.0,91037.0,0.003]
[1764466839781,0.086602,91038.0,91037.0,0.02238]
[1764466839978,0.05824,91038.0,91037.0,0.41238]
[1764466843185,0.0865329,91038.0,91037.0,0.41238]
[1764466846691,0.0865329,91038.0,91037.0,0.003]
[1764466847085,0.0432,91035.0,91034.0,0.00016479]
[1764466847293,0.0432,91025.0,91024.0,0.01938]
[1764466847587,0.0432,91025.0,91024.0,0.16938]
[1764466847788,0.0432,91025.0,91023.0,0.01163635]
[1764466847789,0.0432,91024.0,91023.0,0.01163635]
[1764466847982,0.01374,91026.0,91016.0,0.0303653]
[1764466847983,0.05694,91017.0,91016.0,0.0303653]
[1764466848184,0.05694,91017.0,91016.0,0.4403653]
[1764466848981,0.05694,91017.0,91016.0,0.4432805]
[1764466849186,0.05694,91017.0,91016.0,0.4452805]
[1764466850892,0.05794,91017.0,91016.0,0.4522805]
[1764466862101,0.02308,91017.0,91016.0,0.4522805]
[1764466862297,0.001,91017.0,91016.0,0.4522805]
[1764466865906,0.04336479,91026.0,91025.0,0.01938]
[1764466866096,0.05710479,91026.0,91025.0,0.01938]
[1764466867001,0.05710479,91026.0,91025.0,0.02538]
[1764466867303,0.05810479,91026.0,91025.0,0.02538]
[1764466873424,0.0865298,91026.0,91025.0,0.02538]
[1764466880729,0.0865298,91026.0,91025.0,0.006]
[1764466881023,0.0865298,91026.0,91025.0,0.01569]
[1764466881211,0.0865298,91026.0,91025.0,0.02538]
[1764466883228,0.05810479,91026.0,91025.0,0.02538]
[1764466891421,0.08641177,91026.0,91025.0,0.006]
[1764466891725,0.08641177,91026.0,91010.0,0.010986]
[1764466891726,0.05633,91017.0,91010.0,0.010986]
[1764466891929,0.02203,91011.0,91010.0,0.460366]
[1764466892639,0.01319,91017.0,91010.0,0.460366]
[1764466892640,0.05633,91017.0,91016.0,0.0303654]
[1764466892827,0.05633,91017.0,91016.0,0.4603654]
[1764466893228,0.03522,91020.0,91019.0,0.030365]
[1764466893429,0.03522,91020.0,91019.0,0.390365]
[1764466893729,0.02203,91020.0,91019.0,0.390365]
[1764466894929,0.01335479,91026.0,91025.0,0.0109843]
[1764466895143,0.03538479,91026.0,91025.0,0.3903643]
[1764466895324,0.05649479,91026.0,91025.0,0.3903643]
[1764466896229,0.05749479,91026.0,91025.0,0.3933643]
[1764466896743,0.05749479,91026.0,91025.0,0.3943643]
[1764466897524,0.00116479,91026.0,91025.0,0.3943643]
[1764466898132,0.05633,91035.0,91034.0,0.0303632]
[1764466898327,0.05633,91035.0,91034.0,0.4303632]
[1764466899539,0.05733,91035.0,91034.0,0.4303632]
[1764466900136,0.05733,91035.0,91034.0,0.4313632]
[1764466908942,0.05733,91035.0,91034.0,0.42038]
[1764466921843,0.05733,91035.0,91034.0,0.41069]
[1764466922153,0.05493,91026.0,91025.0,0.00016479]
[1764466922458,0.08332583,91026.0,91025.0,0.00016479]
[1764466923156,0.05493,91026.0,91025.0,0.00016479]
[1764466923455,0.05593,91026.0,91025.0,0.00416479]
[1764466933866,0.05593,91026.0,91025.0,0.02554479]
[1764466935163,0.05593,91026.0,91025.0,0.01485479]
[1764466937172,0.05593,91026.0,91025.0,0.00416479]
[1764466937559,0.05593,91026.0,91025.0,0.02554479]
[1764466944773,0.05593,91026.0,91025.0,0.01485479]
[1764466944974,0.05593,91026.0,91025.0,0.00416479]
[1764466951389,0.08436944,91026.0,91025.0,0.00416479]
[1764466961891,0.08436944,91026.0,91016.0,0.01333047]
[1764466961892,0.0581,91017.0,91016.0,0.01333047]
[1764466962201,0.04427,91007.0,91006.0,0.02165471]
[1764466962398,0.04427,91007.0,91006.0,0.39165471]
[1764466962995,0.04427,91007.0,91006.0,0.4044499]
[1764466964596,0.04427,91007.0,91006.0,0.4064499]
[1764466965200,0.04527,91007.0,91006.0,0.4144499]
[1764466966093,0.04527,91007.0,91006.0,0.1744499]
[1764466966593,0.04527,91007.0,91006.0,0.1530699]
[1764466968195,0.04427,91007.0,91006.0,0.0150699]
[1764466968396,0.04527,91007.0,91006.0,0.0220699]
[1764466969795,0.0736753,91007.0,91006.0,0.0220699]
[1764466970589,0.0736753,91007.0,91006.0,0.0200699]
[1764466971199,0.0726753,91007.0,91006.0,0.0130699]
[1764466971498,0.05227,91007.0,91006.0,0.0140699]
[1764466972496,0.48227,91007.0,91006.0,0.0140699]
[1764466975301,0.48227,91007.0,90997.0,0.00016479]
[1764466975302,0.04394,90998.0,90997.0,0.00016479]
[1764466975497,0.05748,90984.0,90983.0,0.02138]
[1764466975701,0.05748,90984.0,90983.0,0.42138]
[1764466976805,0.05748,90984.0,90983.0,0.43396212]
[1764466977399,0.05948,90984.0,90983.0,0.43596212]
[1764466978407,0.05948,90984.0,90983.0,0.44695152]
[1764466979009,0.05948,90984.0,90983.0,0.43596212]
[1764466980711,0.05948,90984.0,90983.0,0.03596212]
[1764466980910,0.05948,90984.0,90983.0,0.01458212]
[1764466985114,0.05948,90984.0,90983.0,0.03596212]
[1764466999729,0.05948,90984.0,90983.0,0.02527212]
[1764466999918,0.05948,90984.0,90983.0,0.03596212]
[1764467007327,0.08819299,90984.0,90983.0,0.03596212]
[1764467008435,0.08819299,90984.0,90983.0,0.01458212]
[1764467008830,0.08819299,90984.0,90983.0,0.02527212]
[1764467010134,0.08819299,90984.0,90983.0,0.03596212]
[1764467011832,0.08819299,90984.0,90983.0,0.38695152]
[1764467012034,0.002,90984.0,90983.0,0.38695152]
[1764467012235,0.02455,90984.0,90983.0,0.38695152]
[1764467015034,0.0465,90984.0,90983.0,0.38695152]
[1764467019844,0.05961,90984.0,90983.0,0.03596212]
[1764467020142,0.05961,90984.0,90983.0,0.43695152]
[1764467021649,0.002,90984.0,90983.0,0.43695152]
[1764467022835,0.05777479,90993.0,90992.0,0.0323683]
[1764467023039,0.02271479,90993.0,90992.0,0.4523683]
[1764467023640,0.00016479,90993.0,90992.0,0.4523683]
[1764467024148,0.00016479,90993.0,90992.0,0.4533683]
[1764467024348,0.00416479,90993.0,90992.0,0.4533683]
[1764467024551,0.01311,91011.0,91001.0,0.02138]
[1764467024552,0.04363,91002.0,91001.0,0.02138]
[1764467024749,0.08738342,91002.0,91001.0,0.42138]
[1764467025749,0.09438342,91002.0,91001.0,0.42238]
[1764467026146,0.06444,91002.0,91001.0,0.42238]
[1764467033453,0.09435568,91002.0,91001.0,0.42238]
[1764467038654,0.09435568,91002.0,91001.0,0.20238]
[1764467039757,0.09435568,91002.0,91001.0,0.001]
[1764467040361,0.09435568,91002.0,91001.0,0.01169]
[1764467040561,0.09435568,91002.0,91001.0,0.02238]
[1764467042568,0.05819568,91002.0,91001.0,0.40238]
[1764467042764,0.03691568,91002.0,91001.0,0.40238]
[1764467043258,0.08054568,91002.0,91001.0,0.40238]
[1764467043666,0.09435568,91002.0,91001.0,0.40238]
[1764467044864,0.06444,91002.0,91001.0,0.40238]
[1764467048067,0.09492434,91002.0,91001.0,0.40238]
[1764467062482,0.09492434,91002.0,91001.0,0.14238]
[1764467063682,0.09492434,91002.0,91001.0,0.36238]
[1764467069181,0.09483766,91002.0,91001.0,0.36238]
[1764467071178,0.09483766,91002.0,91001.0,0.35169]
[1764467071384,0.09483766,91002.0,91001.0,0.36238]
[1764467090301,0.05867766,91002.0,91001.0,0.36238]
[1764467090890,0.08192766,91002.0,91001.0,0.36238]
[1764467092997,0.007,91002.0,91001.0,0.36238]
[1764467093197,0.00016479,91011.0,91010.0,0.0323661]
[1764467093498,0.03055558,91011.0,91010.0,0.4423661]
[1764467093688,0.05218558,91011.0,91010.0,0.4423661]
[1764467094289,0.07543558,91011.0,91010.0,0.4423661]
[1764467094497,0.08143558,91011.0,91010.0,0.4433661]
[1764467095289,0.05104479,91011.0,91010.0,0.4433661]
[1764467101204,0.05104479,91011.0,91010.0,0.43238]
[1764467102304,0.05104479,91011.0,91010.0,0.06238]
[1764467102510,0.05104479,91011.0,91010.0,0.02238]
[1764467103002,0.05104479,91011.0,91010.0,0.001]
[1764467103212,0.05766,90993.0,90992.0,0.00016479]
[1764467103402,0.05766,90984.0,90983.0,0.03396212]
[1764467103602,0.05766,90984.0,90983.0,0.21138]
[1764467103603,0.08892588,90984.0,90983.0,0.21138]
[1764467104302,0.08892588,90984.0,90983.0,0.2264414]
[1764467104698,0.08992588,90984.0,90983.0,0.2334414]
[1764467105517,0.08992588,90984.0,90983.0,0.2344414]
[1764467108313,0.08992588,90984.0,90983.0,0.4744414]
[1764467111510,0.05866,90984.0,90983.0,0.4744414]
[1764467111711,0.001,90984.0,90983.0,0.4744414]
[1764467114316,0.01294479,90993.0,90983.0,0.4744414]
[1764467114317,0.00016479,90993.0,90992.0,0.02138]
[1764467114517,0.00016479,90993.0,90992.0,0.40138]
[1764467115512,0.00016479,90993.0,90992.0,0.40538]
[1764467121618,0.00016479,90993.0,90992.0,0.41207]
[1764467122016,0.05753,91004.0,91003.0,0.02138]
[1764467122217,0.05753,91004.0,91003.0,0.41138]
[1764467123516,0.05753,91004.0,91003.0,0.41238]
[1764467124919,0.08942533,91004.0,91003.0,0.41238]
[1764467126414,0.08942533,91004.0,91003.0,0.001]
[1764467130325,0.08942533,91004.0,91003.0,0.01169]
[1764467133828,0.08942533,91004.0,91003.0,0.001]
[1764467148941,0.08952192,91004.0,91003.0,0.001]
[1764467169754,0.04529,90995.0,90994.0,0.02154479]
[1764467169951,0.07728192,90995.0,90994.0,0.32154479]
[1764467171659,0.07728192,90995.0,90994.0,0.32354479]
[1764467173455,0.07728192,90995.0,90994.0,0.09354479]
[1764467176562,0.07728192,90995.0,90994.0,0.28354479]
[1764467177664,0.07728192,90995.0,90994.0,0.28154479]
[1764467177853,0.07728192,90995.0,90994.0,0.28354479]
[1764467178258,0.07728192,90995.0,90994.0,0.28154479]
[1764467178469,0.07728192,90995.0,90994.0,0.28354479]
[1764467201978,0.07728192,90995.0,90994.0,0.04354479]
[1764467202278,0.07728192,90995.0,90994.0,0.00216479]
[1764467203473,0.07728192,90995.0,90994.0,0.00116479]
[1764467204071,0.0772766,90995.0,90994.0,0.00116479]
[1764467204471,0.4572766,90995.0,90994.0,0.00116479]
[1764467204673,0.0772766,90995.0,90994.0,0.00116479]
[1764467209276,0.0772766,90995.0,90980.0,0.0109896]
[1764467209483,0.05829,90984.0,90983.0,0.02138]
[1764467210685,0.05829,90984.0,90983.0,0.02538]
[1764467211282,0.05829,90984.0,90983.0,0.03944195]
[1764467219994,0.05829,90984.0,90983.0,0.01806195]
[1764467220195,0.05829,90984.0,90983.0,0.03944195]
[1764467220490,0.05829,90984.0,90983.0,0.01806195]
[1764467220690,0.09025665,90984.0,90983.0,0.01806195]
[1764467221289,0.04567,90975.0,90974.0,0.00016479]
[1764467221486,0.04567,90975.0,90950.0,0.12918482]
[1764467221487,0.05829,90970.0,90969.0,0.0214794]
[1764467221795,0.05829,90970.0,90969.0,0.03531583]
[1764467222692,0.05929,90970.0,90969.0,0.04331583]
[1764467223194,0.05929,90970.0,90969.0,0.04431583]
[1764467229096,0.05929,90970.0,90969.0,0.03362583]
[1764467231100,0.05929,90970.0,90969.0,0.04431583]
[1764467235502,0.05929,90970.0,90969.0,0.02293583]
[1764467235695,0.05929,90970.0,90969.0,0.03362583]
[1764467235894,0.05929,90970.0,90969.0,0.04431583]
[1764467238399,0.05929,90970.0,90969.0,0.02293583]
[1764467238704,0.05929,90970.0,90969.0,0.03362583]
[1764467240706,0.05929,90970.0,90969.0,0.04431583]
[1764467242907,0.05929,90970.0,90969.0,0.03362583]
[1764467248411,0.09127091,90970.0,90969.0,0.02293583]
[1764467252317,0.09127091,90970.0,90969.0,0.04431583]
[1764467281925,0.09127091,90970.0,90969.0,0.43431583]
[1764467282129,0.05595091,90970.0,90969.0,0.43431583]
[1764467282330,0.07926091,90970.0,90969.0,0.43431583]
[1764467282733,0.09217091,90970.0,90969.0,0.43431583]
[1764467282937,0.06019,90970.0,90969.0,0.43431583]
[1764467285341,0.001,90970.0,90969.0,0.43431583]
[1764467285539,0.02147,90984.0,90970.0,0.004]
[1764467285732,0.02147,90984.0,90983.0,0.02138]
[1764467285932,0.05327828,90984.0,90983.0,0.44138]
[1764467286238,0.05327828,90984.0,90983.0,0.4523694]
[1764467286828,0.03180828,90984.0,90983.0,0.4523694]
[1764467287033,0.05769,90988.0,90987.0,0.0323689]
[1764467287233,0.08948338,90988.0,90987.0,0.4023689]
[1764467288336,0.05769,90988.0,90987.0,0.4023689]
[1764467289138,0.05769,90988.0,90987.0,0.4033689]
[1764467312353,0.08902601,90988.0,90987.0,0.4033689]
[1764467323176,0.03133601,90988.0,90987.0,0.4033689]
[1764467323563,0.01328,90998.0,90992.0,0.0323683]
[1764467323758,0.02336479,90993.0,90992.0,0.4423683]
[1764467323959,0.07767677,90993.0,90992.0,0.4423683]
[1764467325066,0.07867677,90993.0,90992.0,0.4423683]
[1764467342094,0.07767677,90993.0,90992.0,0.4423683]
[1764467342394,0.07767677,90993.0,90992.0,0.4443683]
[1764467375212,0.03153677,90993.0,90992.0,0.4443683]
[1764467375411,0.05426677,90993.0,90992.0,0.4443683]
[1764467378115,0.03153677,90993.0,90992.0,0.4443683]
[1764467378321,0.05426677,90993.0,90992.0,0.4443683]
[1764467380721,0.07603677,90993.0,90992.0,0.4443683]
[1764467409355,0.03153677,90993.0,90992.0,0.4443683]
[1764467409559,0.01328,91000.0,90992.0,0.4443683]
[1764467409560,0.03468,91006.0,91005.0,0.0323667]
[1764467409759,0.03468,91006.0,91005.0,0.4623667]
[1764467410258,0.0571,91006.0,91005.0,0.4623667]
[1764467410460,0.0571,91006.0,91005.0,0.2723667]
[1764467411460,0.0591,91006.0,91005.0,0.2723667]
[1764467421564,0.08997258,91006.0,91005.0,0.2723667]
[1764467422856,0.08997258,91006.0,91005.0,0.0216767]
[1764467423052,0.08997258,91006.0,91005.0,0.0109867]
[1764467423763,0.08997258,91006.0,91005.0,0.0216767]
[1764467425666,0.08997258,91006.0,91005.0,0.0323667]
[1764467434471,0.08997258,91006.0,91005.0,0.0216767]
[1764467434769,0.08997258,91006.0,91005.0,0.0323667]
[1764467437465,0.08997258,91006.0,91005.0,0.0216767]
[1764467437667,0.08997258,91006.0,91005.0,0.0109867]
[1764467438069,0.08997258,91006.0,91005.0,0.0216767]
[1764467438267,0.04599,90997.0,90996.0,0.04292489]
[1764467438462,0.04599,90997.0,90996.0,0.42184269]
[1764467439759,0.04599,90997.0,90996.0,0.42284269]
[1764467440766,0.04599,90997.0,90996.0,0.42184269]
[1764467440966,0.04599,90997.0,90996.0,0.43253269]
[1764467441365,0.04599,90997.0,90996.0,0.42154489]
[1764467441564,0.04599,90997.0,90996.0,0.41085489]
[1764467442270,0.04599,90997.0,90996.0,0.42154489]
[1764467443866,0.04699,90997.0,90996.0,0.42154489]
[1764467444381,0.04699,90997.0,90996.0,0.43253269]
[1764467444757,0.04699,90997.0,90996.0,0.03253269]
[1764467445069,0.04699,90997.0,90996.0,0.02154489]
[1764467445364,0.04699,90997.0,90996.0,0.01085489]
[1764467445365,0.07762196,90997.0,90996.0,0.01085489]
[1764467445873,0.07762196,90997.0,90996.0,0.02154489]
[1764467448174,0.07762196,90997.0,90996.0,0.03253269]
[1764467449766,0.07662196,90997.0,90996.0,0.03253269]
[1764467452474,0.07662196,90997.0,90996.0,0.02154489]
[1764467453877,0.07662196,90997.0,90996.0,0.01085489]
[1764467456776,0.07762196,90997.0,90996.0,0.01085489]
[1764467457875,0.07762196,90997.0,90996.0,0.02184269]
[1764467460073,0.07762196,90997.0,90996.0,0.01085489]
[1764467466380,0.07762196,90997.0,90996.0,0.00016489]
[1764467466785,0.07762196,90997.0,90996.0,0.01085489]
[1764467472479,0.07762196,90997.0,90996.0,0.00016489]
[1764467477890,0.05814,90970.0,90969.0,0.03531583]
[1764467478095,0.05814,90970.0,90969.0,0.04630693]
[1764467478892,0.05814,90970.0,90969.0,0.04730693]
[1764467479290,0.05814,90970.0,90969.0,0.05430693]
[1764467479595,0.05914,90970.0,90969.0,0.05430693]
[1764467480190,0.05914,90970.0,90969.0,0.02193583]
[1764467480393,0.05914,90970.0,90969.0,0.02093583]
[1764467485997,0.04418,90967.0,90951.0,0.0109932]
[1764467486198,0.04418,90952.0,90951.0,0.0323732]
[1764467487099,0.04427761,90952.0,90951.0,0.04618471]
[1764467488604,0.04527761,90952.0,90951.0,0.05818471]
[1764467489697,0.04427761,90952.0,90951.0,0.04618471]
[1764467489899,0.04527761,90952.0,90951.0,0.04918471]
[1764467499199,0.02250761,90952.0,90951.0,0.04918471]
[1764467499410,0.00109761,90952.0,90951.0,0.04918471]
[1764467501206,0.02440761,90952.0,90951.0,0.04918471]
[1764467504812,0.02440761,90952.0,90951.0,0.42918471]
[1764467505705,0.04559761,90952.0,90951.0,0.42918471]
[1764467512002,0.05861761,90952.0,90951.0,0.42918471]
[1764467534819,0.05861761,90952.0,90951.0,0.01681151]
[1764467535119,0.05861761,90952.0,90926.0,0.04773125]
[1764467535120,0.04573,90927.0,90926.0,0.04773125]
[1764467535325,0.04573,90927.0,90926.0,0.43773125]
[1764467535518,0.04573,90927.0,90926.0,0.45102495]
[1764467536221,0.04573,90927.0,90926.0,0.06102495]
[1764467536520,0.05886,90927.0,90926.0,0.43102495]
[1764467536822,0.05986,90927.0,90926.0,0.43102495]
[1764467537022,0.05986,90927.0,90926.0,0.43302495]
[1764467538216,0.001,90927.0,90926.0,0.43302495]
[1764467543630,0.001,90927.0,90926.0,0.43102495]
[1764467543830,0.001,90927.0,90926.0,0.43302495]
[1764467544534,0.001,90927.0,90926.0,0.43102495]
[1764467544733,0.001,90927.0,90926.0,0.43202495]
[1764467544934,0.02158489,90936.0,90935.0,0.0474552]
[1764467545130,0.02158489,90936.0,90935.0,0.4674552]
[1764467546038,0.00016489,90936.0,90935.0,0.4674552]
[1764467546237,0.00116489,90936.0,90935.0,0.4724552]
[1764467546637,0.02258489,90936.0,90935.0,0.4724552]
[1764467550045,0.04396489,90936.0,90935.0,0.4724552]
[1764467550741,0.00116489,90936.0,90935.0,0.4724552]
[1764467558339,0.02142,90951.0,90950.0,0.0474534]
[1764467558542,0.0428,90951.0,90950.0,0.4774534]
[1764467559149,0.05611,90951.0,90950.0,0.4774534]
[1764467560753,0.05711,90951.0,90950.0,0.4784534]
[1764467567255,0.05711,90951.0,90950.0,0.46746]
[1764467573766,0.05711,90951.0,90950.0,0.26746]
[1764467588268,0.0438,90951.0,90950.0,0.26746]
[1764467619213,0.001,90951.0,90950.0,0.26746]
[1764467619911,0.0238,90951.0,90950.0,0.26746]
[1764467620415,0.04508,90951.0,90950.0,0.26746]
[1764467623417,0.0238,90951.0,90950.0,0.26746]
[1764467624716,0.0238,90951.0,90950.0,0.03746]
[1764467627717,0.001,90951.0,90950.0,0.03746]
[1764467628618,0.02279,90951.0,90950.0,0.03746]
[1764467629111,0.04586,90951.0,90950.0,0.03746]
[1764467645123,0.001,90951.0,90950.0,0.03746]
[1764467645631,0.04586,90951.0,90950.0,0.03746]
[1764467649920,0.001,90951.0,90950.0,0.03746]
[1764467650519,0.04586,90951.0,90950.0,0.03746]
[1764467653529,0.001,90951.0,90950.0,0.03746]
[1764467655932,0.04441,90951.0,90950.0,0.03746]
[1764467657531,0.04441,90951.0,90950.0,0.1239431]
[1764467657732,0.04441,90951.0,90950.0,0.03746]
[1764467660339,0.04441,90951.0,90950.0,0.12432133]
[1764467675548,0.02209,90951.0,90950.0,0.12432133]
[1764467676743,0.04507,90951.0,90950.0,0.12432133]
[1764467712071,0.04507,90951.0,90950.0,0.03746]
[1764467719090,0.05829,90951.0,90950.0,0.03746]
[1764467758008,0.05829,90951.0,90950.0,0.001]
[1764467764320,0.05886,90942.0,90941.0,0.00016489]
[1764467765408,0.05886,90942.0,90941.0,0.00116489]
[1764467766005,0.05886,90942.0,90941.0,0.00416489]
[1764467766217,0.05986,90942.0,90941.0,0.00416489]
[1764467793641,0.05986,90942.0,90941.0,0.04262489]
[1764467794342,0.05986,90942.0,90941.0,0.02339489]
[1764467796242,0.05986,90942.0,90941.0,0.04262489]
[1764467799346,0.05986,90942.0,90941.0,0.02339489]
[1764467802340,0.05986,90942.0,90941.0,0.04262489]
[1764467804744,0.05986,90942.0,90941.0,0.39262489]
[1764467838466,0.04425761,90952.0,90951.0,0.0494532]
[1764467838769,9.761e-05,90952.0,90951.0,0.4494532]
[1764467838967,0.04416,90956.0,90955.0,0.0494527]
[1764467839171,0.04416,90956.0,90955.0,0.4194527]
[1764467839358,0.02314,90956.0,90955.0,0.4194527]
[1764467839568,0.04432489,90960.0,90959.0,0.0494523]
[1764467839763,0.04432489,90960.0,90959.0,0.4094523]
[1764467840671,0.00016489,90960.0,90959.0,0.4094523]
[1764467840861,0.00416489,90960.0,90959.0,0.4104523]
[1764467841061,0.05922,90966.0,90965.0,0.0494515]
[1764467841261,0.05922,90966.0,90965.0,0.4794515]
[1764467842075,0.04562,90966.0,90965.0,0.4794515]
[1764467842368,0.02301,90966.0,90965.0,0.4794515]
[1764467842766,0.02701,90966.0,90965.0,0.4804515]
[1764467843372,0.01367,90972.0,90971.0,0.0546708]
[1764467843373,0.04562,90972.0,90971.0,0.0546708]
[1764467843563,0.04562,90972.0,90971.0,0.4746708]
[1764467845061,0.04662,90972.0,90971.0,0.4746708]
[1764467845671,0.04962,90972.0,90971.0,0.4756708]
[1764467853176,0.02701,90972.0,90971.0,0.4756708]
[1764467853368,0.004,90972.0,90971.0,0.4756708]
[1764467854777,0.02317489,90975.0,90974.0,0.0546705]
[1764467855079,0.02317489,90975.0,90974.0,0.4546705]
[1764467855276,0.04578489,90975.0,90974.0,0.4546705]
[1764467856573,0.04778489,90975.0,90974.0,0.4546705]
[1764467856964,0.04878489,90975.0,90974.0,0.4546705]
[1764467897799,0.04878489,90975.0,90974.0,0.44368]
[1764467899099,0.04878489,90975.0,90974.0,0.4546705]
[1764467924715,0.04878489,90975.0,90962.0,0.00016489]
[1764467924716,0.0437,90963.0,90962.0,0.04422489]
[1764467924914,0.0437,90963.0,90962.0,0.44422489]
[1764467927225,0.0437,90963.0,90962.0,0.44722489]
[1764467947736,0.0437,90963.0,90962.0,0.00316489]
[1764467947941,0.01357,90970.0,90933.0,0.0109953]
[1764467947942,0.05727,90950.0,90949.0,0.0550534]
[1764467948134,0.05727,90950.0,90949.0,0.4050534]
[1764467949343,0.05827,90950.0,90949.0,0.4120534]
[1764467949542,0.0447,90950.0,90949.0,0.4120534]
[1764467949742,0.001,90950.0,90949.0,0.4120534]
[1764467954743,0.02273,90950.0,90949.0,0.4120534]